Cogmind - Beta 15 *** ADVENTURER MODE // 2025.10.17 @ 01:52:56 Player: Roxy Result: Destroyed by PP-C3A(R) with Subdweller Machine Gun Performance ------------- Evolutions (0) 0 Regions Visited (2) 400 Robots Destroyed (20) 100 Value Destroyed (534) 534 Prototype IDs (0) 0 Alien Tech Used (0) 0 Bonus (0) 0 TOTAL SCORE: 1034 Bonus ------- None Cogmind --------- Core Integrity 0/250 Matter 240/300 Energy 250/250 System Corruption 0% Temperature Cool (0) Movement Core (100) Ox1 Location -10/Subcaves Parts ------- > --- POWER (1) -------- Ion Engine > --- PROPULSION (2) --- (None) > --- UTILITY (2) ------ Signal Interpreter > --- WEAPON (2) ------- (None) > --- INVENTORY (5) ---- Subdweller Power Source Disposable Heat Sink Subdweller Optics Assault Rifle Datajack Peak State ------------ > --- POWER ------------ Ion Engine > --- PROPULSION ------- Aluminum Leg Aluminum Leg > --- UTILITY ---------- High-capacity Storage Unit Signal Interpreter > --- WEAPON ----------- Barrage Gun Makeshift Axe > --- INVENTORY -------- Light Ion Engine Subdweller Power Source Aluminum Leg Disposable Heat Sink Subdweller Optics Medium Laser Particle Gun Assault Rifle Assault Rifle Subdweller Machine Gun Datajack [Rating: 13] Favorites ----------- Power Ion Engine Engine Ion Engine Propulsion Aluminum Leg Leg Aluminum Leg Utility Heat Sink Device Heat Sink Storage High-capacity Storage Unit Processor Signal Interpreter Weapon Assault Rifle Ballistic Gun Assault Rifle Slashing Weapon Makeshift Axe Build | -11 -10 -10 ------- Run | Yrd Mat Sub Slots Evolved . | . . . Power . | . . . Propulsion . | . . . Utility . | . . . Weapon . | . . . Parts Attached 23 | 6 9 8 Power 3 | 1 2 . Engine 3 | 1 2 . Core . | . . . Reactor . | . . . Propulsion 6 | 2 2 2 Treads . | . . . Leg 6 | 2 2 2 Wheel . | . . . Hover . | . . . Flight . | . . . Utility 6 | 1 4 1 Device 2 | . 2 . Storage 3 | 1 2 . Processor 1 | . . 1 Hackware . | . . . Protection . | . . . Artifact . | . . . Weapon 8 | 2 1 5 Energy Gun . | . . . Energy Cannon . | . . . Ballistic Gun 7 | 2 1 4 Ballistic Cannon . | . . . Launcher . | . . . Special Weapon . | . . . Impact Weapon . | . . . Slashing Weapon 1 | . . 1 Piercing Weapon . | . . . Special Melee Weapon . | . . . Unidentified Prototypes . | . . . Parts Lost 7 | . . 7 Power 1 | . . 1 Propulsion 2 | . . 2 Utility 1 | . . 1 Weapon 3 | . . 3 Highest Loss Streak 4 | . . 4 To Critical Strikes 2 | . . 2 Average Backups 8 | 2 7 9 Power 1 | . 1 2 Propulsion 1 | . 1 1 Utility 1 | . . 1 Weapon 3 | 1 2 3 Tool/Special . | . . . Unused Backups 8 | . . 8 Power 2 | . . 2 Propulsion . | . . . Utility 2 | . . 2 Weapon 3 | . . 3 Tool/Special 1 | . . 1 Average Slot Usage (%) 98 | . 98 98 Engine 13 | . 13 13 Leg 27 | . 27 27 Device 9 | . 13 5 Storage 13 | . 14 13 Processor 3 | . . 8 Ballistic Gun 27 | . 27 26 Peak Build Rating 13 | 6 8 13 Average Rating 7 | 4 6 8 On Entrance 4 | . 6 8 Naked Turns . | . . . Heaviest Build 54 | 14 50 54 Greatest Support 20 | 20 20 20 Greatest Overweight (x) 2 | . 2 2 Average Overweight (x) . | . . 1 Largest Inventory Capacity 20 | 8 20 20 Average Capacity 14 | 7 10 19 Most Carried 12 | 5 9 12 Average Carried 8 | 2 7 9 Final Capacity 20 | 8 20 5 Final Carried 9 | 2 9 5 Class Distribution -------------------- 55% | Mutant 44% | Scavenger-Mutant Dominant Class ---------------- Scavenger-Mutant | -10/Materials Mutant | -10/Subcaves Resources | -11 -10 -10 ----------- Run | Yrd Mat Sub Matter Collected 799 | 217 341 241 Remotely . | . . . Salvage Created 648 | . 423 225 Parts 37 | . 26 11 Haulers Intercepted . | . . . Recyclers Shooed 2 | . 2 . Parts Field Recycled . | . . . Retrieved Matter . | . . . Parts Self-Destructed 1 | . . 1 Prevented . | . . . Kills | -11 -10 -10 ------- Run | Yrd Mat Sub Combat Hostiles Destroyed 17 | . 11 6 Melee 1 | . . 1 Guns 16 | . 11 5 Classes Destroyed 5 | . 4 1 Recycler 1 | . 1 . Watcher 2 | . 2 . Swarmer 6 | . 6 . Grunt 5 | . 5 . Subdweller 6 | . . 6 Best Kill Streak 4 | . 4 2 Combat Bots Only 3 | . 3 2 Max Kills in Single Turn 2 | . 2 1 Gunslinging 1 | . 1 . Exploded . | . . . Melee 1 | . . 1 Uniques/NPCs Destroyed . | . . . Combat | -11 -10 -10 -------- Run | Yrd Mat Sub Hostile Shots Fired 131 | . 62 69 Missed 34 | . 17 17 Hits 97 | . 45 52 Projectile 97 | . 45 52 Critical Strikes 7 | . 1 6 Damage Taken 1243 | . 329 914 Core 258 | . 38 220 Absorbed by Shields . | . . . Ignored by Resistances 361 | . 105 256 Regen/Repaired (Parts) 116 | . 116 . Core Remaining (%) 100 | 100 . . Volleys Fired 67 | . 36 31 Largest 2 | . 2 2 Hottest 60 | . 40 60 Shots Fired 133 | . 72 61 Gun 133 | . 72 61 Cannon . | . . . Launcher . | . . . Special . | . . . Kinetic 133 | . 72 61 Thermal . | . . . Explosive . | . . . Electromagnetic . | . . . Robot Hit Streak 27 | . 27 22 Robot Miss Streak 4 | . 4 2 Penetration Max . | . . . Secondary Targets 5 | . 5 . Max Gunslinging Chain 1 | . 1 . Shots Hit Robots 118 | . 57 61 Core Hits 37 | . 25 12 Critical Kills . | . . . Critical Parts Destroyed 1 | . 1 . Critical Strikes 3 | . 1 2 Destroy 3 | . 1 2 Melee Attacks 7 | . . 7 Impact . | . . . Slashing 7 | . . 7 Piercing . | . . . Sneak Attacks . | . . . Combat Hostiles . | . . . Follow-up Attacks . | . . . Damage Inflicted 1511 | . 717 794 Guns 1269 | . 717 552 Cannons . | . . . Explosions . | . . . Melee 242 | . . 242 Ramming . | . . . Kinetic 1269 | . 717 552 Thermal . | . . . Explosive . | . . . Electromagnetic . | . . . Impact . | . . . Slashing 242 | . . 242 Piercing . | . . . Highest Corruption . | . . . Average Corruption . | . . . Corruption Purged . | . . . Corruption Blocked . | . . . Overload Shots . | . . . Overflow Damage . | . . . Projectiles . | . . . Explosions . | . . . Melee . | . . . Knockbacks . | . . . Impact . | . . . Kinetic . | . . . Secondary . | . . . Self-Inflicted Damage . | . . . Shots . | . . . Rammed . | . . . Targets Rammed . | . . . Kicked . | . . . Crushed . | . . . Highest Temperature 362 | . 20 362 Average Temperature 165 | . 9 210 Received Heat Transfer 1026 | . 147 879 Siege Activations . | . . . Martial Activations . | . . . Shielding Activations . | . . . Robots Disrupted . | . . . Combat Hostiles . | . . . Robots Corrupted . | . . . Combat Hostiles . | . . . Parts Fried . | . . . Impact Corruptions . | . . . Robots Melted . | . . . Combat Hostiles . | . . . Parts Melted 1 | . . 1 Heat Transferred . | . . . Parts Sabotaged . | . . . Parts Stolen . | . . . Parts Stripped . | . . . Power Chain Reactions . | . . . Alert | -11 -10 -10 ------- Run | Yrd Mat Sub Maximum Alert Level . | . . . Low Security (%) 100 | 100 100 . Level 1 . | . . . Level 2 . | . . . Level 3 . | . . . Level 4 . | . . . Level 5 . | . . . High Security . | . . . Max Security . | . . . Peak Influence 117 | . 117 . Initial . | . . . Average 17 | . 18 . Influence Increases 295 | . 295 . Destroy 0b10 Robot/C 220 | . 220 . Destroy 0b10 Robot/NC 15 | . 15 . Destroy Leader 44 | . 44 . Successful Hack 15 | . 15 . Destroy Structure 1 | . 1 . Influence Decreases 295 | . 295 . Time Decay 295 | . 295 . Squads Dispatched . | . . . Investigation . | . . . Extermination . | . . . Reinforcement . | . . . Assault . | . . . Garrison . | . . . Intercept . | . . . Searches Triggered . | . . . Construction Impeded . | . . . Haulers Reinforced . | . . . Active Scanning Responses . | . . . Cargo Convoy Interrupts . | . . . Stealth | -11 -10 -10 --------- Run | Yrd Mat Sub Distress Signals 2 | . 2 . Communications Jammed . | . . . Distress Signals . | . . . Times Spotted 27 | . 19 8 Peak Tracking Total 5 | . 5 2 Tactical Retreats . | . . . Traps | -11 -10 -10 ------- Run | Yrd Mat Sub Traps Triggered . | . . . Indirectly . | . . . Trap Hack Attempts . | . . . Triggered . | . . . Disarmed 11 | . 11 . Reprogrammed . | . . . Reused . | . . . Traps Extracted . | . . . Installed . | . . . Triggered . | . . . Machines | -11 -10 -10 ---------- Run | Yrd Mat Sub Machines Disabled . | . . . Max in Single Turn . | . . . Machines Repaired . | . . . Machines Dismantled . | . . . Machines Sabotaged . | . . . Overloaded Fab Kills . | . . . Hacking | -11 -10 -10 --------- Run | Yrd Mat Sub Machines Accessed 11 | . 11 . Terminals 8 | . 8 . Fabricators . | . . . Repair Stations 1 | . 1 . Recycling Units 2 | . 2 . Scanalyzers . | . . . Garrison Access . | . . . Total Hacks 28 | . 28 . Successful 18 | . 18 . Failed 10 | . 10 . Catastrophic 2 | . 2 . Database Lockouts . | . . . Manual 16 | . 16 . Terminals 18 | . 18 . Fabricators . | . . . Repair Stations 6 | . 6 . Recycling Units 4 | . 4 . Scanalyzers . | . . . Garrison Access . | . . . Terminal Hacks 7 | . 7 . Robot Analysis 1 | . 1 . Terminal Index 1 | . 1 . Fabricator Index 1 | . 1 . Locate Traps 2 | . 2 . Disarm Traps 2 | . 2 . Fabricator Hacks . | . . . Repair Station Hacks 6 | . 6 . Scan Component 3 | . 3 . Repair 3 | . 3 . Recycling Unit Hacks 1 | . 1 . Retrieve Components 1 | . 1 . Scanalyzer . | . . . Garrison Access Hacks . | . . . Unauthorized Hacks 4 | . 4 . Terminals 4 | . 4 . Botnet 4 | . 4 . Fabricators . | . . . Repair Stations . | . . . Recycling Units . | . . . Scanalyzers . | . . . Garrison Access . | . . . Data Cores Recovered . | . . . Used . | . . . Hacking Detections 8 | . 8 . Full Trace Events . | . . . Feedback Events . | . . . Feedback Blocked . | . . . Robot Schematics Acquired . | . . . Robots Built . | . . . Authchips . | . . . Time . | . . . Total Robot Build Rating . | . . . Part Schematics Acquired . | . . . Parts Built . | . . . Authchips . | . . . Time . | . . . Total Part Build Rating . | . . . Parts Repaired 3 | . 3 . Time 78 | . 78 . Parts Recycled . | . . . Recycled Matter . | . . . Retrieved Matter . | . . . Retrieved Components 7 | . 7 . Parts Scanalyzed . | . . . Part Schematics Acquired . | . . . Parts Damaged . | . . . Bothacking | -11 -10 -10 ------------ Run | Yrd Mat Sub Used RIF Installer . | . . . Robots Hacked . | . . . Non-combat . | . . . Combat . | . . . Robot Hacks Applied . | . . . Relay Couplers Released . | . . . Fabnet Peak Effective % . | . . . Robots Rewired . | . . . Allies Hacked . | . . . Hacks Repelled . | . . . Allies | -11 -10 -10 -------- Run | Yrd Mat Sub Total Allies . | . . . Largest Group . | . . . Highest-Rated Group . | . . . Highest-Rated Ally . | . . . Total Orders . | . . . Ally Attacks . | . . . Total Damage . | . . . Kills . | . . . Allies Corrupted . | . . . Allies Melted . | . . . Intel | -11 -10 -10 ------- Run | Yrd Mat Sub Active Infowar (turns) . | . . . Robot Analysis Total 1 | . 1 . Derelict Logs Recovered . | . . . Drone Launches . | . . . Drone Recoveries . | . . . Exploration | -11 -10 -10 ------------- Run | Yrd Mat Sub Turns Passed 3040 | 88 1535 1417 Spaces Moved 1325 | 66 766 493 Core 19 | 10 . 9 Treads . | . . . Legs 1306 | 56 766 484 Wheels . | . . . Hover . | . . . Flight . | . . . Fastest Speed 50 | 50 120 100 Average Speed 184 | 109 145 256 Slowest Speed 260 | 120 260 260 Overloaded Moves . | . . . Propulsion Burnouts . | . . . Robots Hopped . | . . . Potential Cave-ins . | . . . Cave-ins Triggered . | . . . Exploration Rate (%) 46 | 4 97 37 Regions Visited 2 Branch Regions 1 Pre-discovered Areas . | . . . Known Exits Taken . | . . . Unknown Exits Taken 2 | 1 1 . Scrap Searched . | . . . Spaces Dug . | . . . Terrain Destroyed . | . . . Melee . | . . . Projectile . | . . . AOE . | . . . Terrain Rammed . | . . . Walls Destroyed . | . . . Machines Disabled . | . . . Actions | -11 -10 -10 --------- Run | Yrd Mat Sub Total 1777 | 80 1119 578 Wait 304 | 4 284 16 Move 1323 | 65 765 493 Hop . | . . . Pick Up 31 | 5 15 11 Fast Attach 3 | 3 . . Attach 14 | 3 4 7 Detach . | . . . Swap 13 | . 8 5 Drop 15 | . 7 8 Fire 67 | . 36 31 Melee 7 | . . 7 Ram . | . . . Kick . | . . . Crush . | . . . Escape Stasis . | . . . Rewire . | . . . Trap . | . . . Miscellaneous . | . . . Route ------- -11/Scrapyard -10/Materials (discovered 5 exits: [*Mat x3] / [*Min] / [*Sub]) -10/Subcaves History --------- Turn | Location | Event 2 | -11/Scrapyard | Met Revision 17 8 | -11/Scrapyard | Discovered new exit (range 16) 89 | -11/Scrapyard | Entered Materials 458 | -10/Materials | Discovered new exit (range 8) 521 | -10/Materials | Repaired Ion Engine 569 | -10/Materials | Repaired Assault Rifle 597 | -10/Materials | Repaired Aluminum Leg 772 | -10/Materials | Discovered new exit (range 16) 895 | -10/Materials | Build established: Scavenger-Mutant 1004 | -10/Materials | Discovered new exit (range 15) 1435 | -10/Materials | Discovered new exit (range 5) 1515 | -10/Materials | Discovered new exit (range 16) 1624 | -10/Materials | Entered Subcaves 1688 | -10/Subcaves | A swath of the cavern ceiling suddenly collapsed 1786 | -10/Subcaves | Build established: Mutant 2196 | -10/Subcaves | Core integrity fell below 50% 2225 | -10/Subcaves | Core integrity fell below 20% 2234 | -10/Subcaves | Lost 4 parts (1p1u2w) 3041 | -10/Subcaves | Destroyed by PP-C3A(R) with Subdweller Machine Gun Last Messages --------------- Ion Engine destroyed. 4H-UT9(R) destroyed. Sub. Monowheel melted. O9-4KJ(R) destroyed. Acquired 36 matter. Acquired 43 matter. Subatomizers dissect the Disposable Heat Sink. Acquired Disposable Heat Sink. Acquired 9 matter. Acquired Mak. Axe. Acquired Barrage Gun. Aluminum Leg destroyed. Destroyed Scrap Shield. FI-KZG(R) destroyed. Acquired 35 matter. R3-WQV(R) angrily emerges from the Twisted Machinery. Dropped Aluminum Leg. Dropped Hcp. Storage Unit. Dropped Barrage Gun. Dropped Mak. Axe. Map ----- +----------------------------------------------------+ | | | | | | | | | ?????????????????????????????????????????????????? | | ?????????????????????????????????????????????????? | | ?????????????????????????????????????????????????? | | ?????????????????????????????????????????????????? | | ???????????????####??????????????????????????????? | | ????????????###"" "??????????????????????????????? | | ???????????## " ???????????????????????????????? | | ???????????# & ???????????????????????????????? | | ??????????## "" $????????????????????????????????? | | ??????????# " " $???????"#???????????????????????? | | ??????????#" ??????? "#???????????????????????? | | ??????????# ??????" #???????????????????????? | | ??????????#" #####? & "#???????????????????????? | | ??????????#" [ # "&#????????????#???????????? | | ??????????##" ##*![/ " #???????????## ???######## | | ???????????####<==##" "##???????????# #### # | | ????????????### [[<#######???????##### ## | | ??????????### " [RR ### #???????# # ### | | ???##????## ######### ## | | ???# ##?## ### ### ### | | ???# ### #?# #?# ### | | ???# ### #### @# ## #?## ### | | ???# ### #### # ########??####?#### | | ???# ## #?# ##????????????????# | | ????# #?## ???#?###??????### | | ????## & #??### ## ? ## ##?????# | | ?????######### #????####?# ###???# | | ?????????????## ##????????? ##??### | | ??????????????## ##???????? # # #????## | | ???????????????# #????????? ##### #?????# | | ???????????????# #????????? #?## #????## | | ???????????????# #?????????#??# #?##### | | ???????????????# ##??????????## ### | | ?######????????# ############ ### | | ##" #???????## ## ## | | ???###?# | | " ??## ### #### | | #??# ### #??## | | "" #### ### #?######???## ### | | ## # ##?## #???????????#######?## ### | | & ####???# #????????????????????####?? | | ## ##????### #?????????????????????????? | | ??## #???# #?????????????????????????? | | ##### #??? #?????????????????????????? | | #?#### #??? #?????????????????????????? | | #???# ##??? ##?????????????????????????? | +----------------------------------------------------+ Best States ------------- Heat Dissipation 35 Energy Generation 10 Energy Capacity 250 Matter Stores 300 Matter Capacity 300 Sight Range 16 Terrain Scan Density 10 Resistance: KI 20 Resistance: TH 20 Resistance: EX 20 Resistance: EM 20 Resistance: I 20 Resistance: S 20 Resistance: P 20 Evasion (%) 55 Offensive Hacking 10 Item Schematics ----------------- None Robot Schematics ------------------ None Fabricated ------------ Nothing Repaired ---------- Ion Engine | 51% | -10/Materials Assault Rifle | 50% | -10/Materials Aluminum Leg | 58% | -10/Materials Alien Tech Used ----------------- None Achievements -------------- None Challenges ------------ None Game ------ Seed PersonalBehemothDissipator Manual? 0 Play Time 00:26:38 Cumulative 30.9 hours Start 2025.10.17 @ 01:24:51 End 2025.10.17 @ 01:52:56 Sessions 1 Manual Loads 0 Difficulty Adventurer Special Mode None Game No. 43 Rogue 26 Adventurer 17 Explorer 0 Win Type - Total 0 Types 0/0/0/0/0/0/0/0/0/0 Lore% 15 Gallery% 27 Achievement% 25 Wizard Run 0 Options --------- Layout 0 ASCII 0 Keyboard 0 Movement Mouse Keybinds 0 Fullscreen 1 Font 18/SmallcapsGlow Map View 76x50 Zoom Use 0% Tactical HUD 0 Map Filters NONE Filters NONE Steam 1 RUN: 6c32b215-d90e-4b30-a5c7-f890ed43d437